fUSD/lending_fUSD_20240912
["ID","MTS","AMOUNT","RATE_DAILY","PERIOD"]
[337876869,1726179048967,-1315.62,0.00014794,2]
[337876870,1726179048976,-908.46,0.00014794,2]
[337876871,1726179048986,-2267.96,0.00014794,2]
[337876872,1726179048995,-830.3,0.00014794,2]
[337876873,1726179049007,-1315.62,0.00014794,2]
[337876874,1726179049016,-2608.0,0.00014794,2]
[337876875,1726179049025,-908.46,0.00014794,2]
[337876876,1726179049035,-830.3,0.00014794,2]
[337876877,1726179049044,-2267.96,0.00014794,2]
[337876878,1726179049053,-1315.74558937,0.00014794,2]
[337876879,1726179049062,-2608.0,0.00014794,2]
[337876880,1726179049071,-830.3,0.00014794,2]
[337876881,1726179049080,-2268.00518493,0.00014794,2]
[337876882,1726179049089,-2608.0,0.00014794,2]
[337876883,1726179049098,-830.3,0.00014794,2]
[337876884,1726179049110,-908.46,0.00014794,2]
[337876885,1726179049119,-830.3,0.00014794,2]
[337876886,1726179049129,-908.46,0.00014794,2]
[337876887,1726179049138,-2608.0,0.00014794,2]
[337876888,1726179049148,-830.3,0.00014794,2]
[337876889,1726179049157,-908.46,0.00014794,2]
[337876890,1726179049166,-828.55,0.00014794,2]
[337876891,1726179049175,-2608.0,0.00014794,2]
[337876892,1726179049186,-830.3,0.00014794,2]
[337876893,1726179049499,-828.55,0.00014794,2]
[337876894,1726179049510,-2608.0,0.00014794,2]
[337876895,1726179049520,-908.46,0.00014794,2]
[337876896,1726179049530,-830.3,0.00014794,2]
[337876897,1726179049540,-828.55,0.00014794,2]
[337876898,1726179049549,-2608.0,0.00014794,2]
[337876899,1726179049559,-830.3,0.00014794,2]
[337876900,1726179049569,-908.46,0.00014794,2]
[337876901,1726179049579,-2608.0,0.00014794,2]
[337876902,1726179049589,-830.3,0.00014794,2]
[337876903,1726179049599,-828.55,0.00014794,2]
[337876904,1726179049608,-2608.0,0.00014794,2]
[337876905,1726179049618,-830.3,0.00014794,2]
[337876906,1726179049628,-828.55,0.00014794,2]
[337876907,1726179049638,-908.46,0.00014794,2]
[337876908,1726179049648,-2608.0,0.00014794,2]
[337876909,1726179049659,-908.46,0.00014794,2]
[337876910,1726179049669,-828.55,0.00014794,2]
[337876911,1726179049679,-830.3,0.00014794,2]
[337876912,1726179049688,-2608.0,0.00014794,2]
[337876913,1726179049698,-908.46,0.00014794,2]
[337876914,1726179049708,-828.55,0.00014794,2]
[337876915,1726179049717,-830.3,0.00014794,2]
[337876916,1726179049726,-2608.0,0.00014794,2]
[337876917,1726179049735,-908.46,0.00014794,2]
[337876918,1726179049744,-828.55,0.00014794,2]
[337876919,1726179049754,-830.38772803,0.00014794,2]
[337876920,1726179049765,-610.92,0.00014794,2]
[337876921,1726179049774,-1977.57312117,0.00014794,2]
[337876922,1726179049875,-630.42687883,0.00014794,2]
[337876923,1726179049884,-908.46,0.00014794,2]
[337876924,1726179049894,-828.55,0.00014794,2]
[337876925,1726179049904,-571.88484775,0.00014794,2]
[337876926,1726179049919,-2036.11515225,0.00014794,2]
[337876927,1726179049928,-828.55,0.00014794,2]
[337876928,1726179049939,-908.46,0.00014794,2]
[337876929,1726179049948,-718.59486267,0.00014794,2]
[337876930,1726179049962,-1889.40513733,0.00014794,2]
[337876931,1726179049972,-828.55,0.00014794,2]
[337876932,1726179049982,-908.46,0.00014794,2]
[337876933,1726179049992,-2608.06850901,0.00014794,2]
[337876934,1726179050002,-828.55,0.00014794,2]
[337876935,1726179050012,-908.46,0.00014794,2]
[337876936,1726179050021,-485.86906486,0.00014794,2]
[337876937,1726179050037,-422.59093514,0.00014794,2]
[337876938,1726179050047,-109.76234591,0.00014794,2]
[337876939,1726179050059,-390.23765409,0.00014794,2]
[337876940,1726179050068,-195.15736091,0.00014794,2]
[337876941,1726179050080,-633.39263909,0.00014794,2]
[337876942,1726179050090,-908.46,0.00014794,2]
[337876943,1726179050099,-828.55,0.00014794,2]
[337876944,1726179050111,-908.46,0.00014794,2]
[337876945,1726179050120,-1802.36,0.00014794,2]
[337876946,1726179050129,-828.55,0.00014794,2]
[337876947,1726179050139,-500.0,0.00014794,2]
[337876948,1726179050149,-446.12803318,0.00014794,2]
[337876949,1726179050165,-462.33196682,0.00014794,2]
[337876950,1726179050175,-105.01628109,0.00014794,2]
[337876951,1726179050191,-682.39886699,0.00014794,2]
[337876952,1726179050202,-1014.94485192,0.00014794,2]
[337876953,1726179050211,-828.55,0.00014794,2]
[337876954,1726179050220,-500.0,0.00014794,2]
[337876955,1726179050229,-284.26536941,0.00014794,2]
[337876956,1726179050242,-624.19463059,0.00014794,2]
[337876957,1726179050250,-1802.36,0.00014794,2]
[337876958,1726179050261,-828.55,0.00014794,2]
[337876959,1726179050270,-500.0,0.00014794,2]
[337876960,1726179050279,-908.46,0.00014794,2]
[337876961,1726179050288,-1320.33536941,0.00014794,2]
[337876962,1726179050303,-332.4976,0.00014794,2]
[337876963,1726179050314,-421.82703059,0.00014794,2]
[337876964,1726179050323,-1802.36,0.00014794,2]
[337876965,1726179050332,-828.55,0.00014794,2]
[337876966,1726179050342,-908.59593464,0.00014794,2]
[337876967,1726179050351,-500.0,0.00014794,2]
[337876968,1726179050361,-500.0,0.00014794,2]
[337876969,1726179050371,-2074.66,0.00014794,2]
[337876970,1726179050381,-1802.36,0.00014794,2]
[337876971,1726179050390,-500.0,0.00014794,2]
[337876972,1726179050399,-2074.66,0.00014794,2]
[337876973,1726179050408,-500.0,0.00014794,2]
[337876974,1726179050418,-1802.36,0.00014794,2]
[337876975,1726179050427,-828.55,0.00014794,2]
[337876976,1726179050436,-2074.66,0.00014794,2]
[337876977,1726179050446,-178.80138526,0.00014794,2]
[337876978,1726179050455,-500.0,0.00014794,2]
[337876979,1726179050465,-1802.36,0.00014794,2]
[337876980,1726179050474,-828.55,0.00014794,2]
[337876981,1726179050483,-2074.66,0.00014794,2]
[337876982,1726179050492,-500.0,0.00014794,2]
[337876983,1726179050502,-1802.36,0.00014794,2]
[337876984,1726179050511,-828.55,0.00014794,2]
[337876985,1726179050520,-1802.36,0.00014794,2]
[337876986,1726179050529,-500.0,0.00014794,2]
[337876987,1726179050539,-1203.73,0.00014794,2]
[337876988,1726179050548,-2074.66,0.00014794,2]
[337876989,1726179050557,-828.55,0.00014794,2]
[337876990,1726179050566,-1203.73,0.00014794,2]
[337876991,1726179050576,-500.0,0.00014794,2]
[337876992,1726179050586,-859.0228472,0.00014794,2]
[337876993,1726179050618,-943.3371528,0.00014794,2]
[337876994,1726179050628,-115.2204972,0.00014794,2]
[337876995,1726179050639,-1959.4395028,0.00014794,2]
[337876996,1726179050648,-828.55,0.00014794,2]
[337876997,1726179050658,-1203.73,0.00014794,2]
[337876998,1726179050667,-1802.36,0.00014794,2]
[337876999,1726179050676,-2074.66,0.00014794,2]
[337877000,1726179050685,-828.7,0.00014794,2]
[337877001,1726179050694,-1203.73,0.00014794,2]
[337877002,1726179050704,-1802.36,0.00014794,2]
[337877003,1726179050713,-500.0,0.00014794,2]
[337877004,1726179050722,-2074.66,0.00014794,2]
[337877005,1726179050731,-1203.73,0.00014794,2]
[337877006,1726179050741,-1802.36,0.00014794,2]
[337877007,1726179050751,-500.0,0.00014794,2]
[337877008,1726179050761,-2074.66,0.00014794,2]
[337877009,1726179050770,-1203.73,0.00014794,2]
[337877010,1726179050780,-1802.36,0.00014794,2]
[337877011,1726179050789,-500.0,0.00014794,2]
[337877012,1726179050799,-2074.66,0.00014794,2]
[337877013,1726179050808,-2074.66,0.00014794,2]
[337877014,1726179050818,-1203.73,0.00014794,2]
[337877015,1726179050828,-1802.36,0.00014794,2]
[337877016,1726179050837,-500.0,0.00014794,2]
[337877017,1726179050847,-1203.73,0.00014794,2]
[337877018,1726179050856,-500.0,0.00014794,2]
[337877019,1726179050865,-1802.36,0.00014794,2]
[337877020,1726179050875,-500.0,0.00014794,2]
[337877021,1726179050884,-1203.73,0.00014794,2]
[337877022,1726179050893,-2074.66,0.00014794,2]
[337877023,1726179050902,-1389.82657701,0.00014794,2]
[337877024,1726179050934,-370.19267968,0.00014794,2]
[337877025,1726179051199,-308.63472767,0.00014597,2]
[337877026,1726179051209,-42.34074331,0.00014794,2]
[337877027,1726179051219,-1203.73,0.00014794,2]
[337877028,1726179051228,-500.0,0.00014794,2]
[337877029,1726179051237,-2074.66,0.00014794,2]
[337877030,1726179051246,-1802.36,0.00014794,2]
[337877031,1726179051255,-721.52589522,0.00014794,2]
[337877032,1726179051271,-482.20410478,0.00014794,2]
[337877033,1726179051280,-500.0,0.00014794,2]
[337877034,1726179051289,-1024.93589522,0.00014794,2]
[337877035,1726179051302,-602.0,0.00014794,2]
[337877036,1726179051313,-447.72410478,0.00014794,2]
[337877037,1726179051322,-1802.36,0.00014794,2]
[337877038,1726179051331,-500.0,0.00014794,2]
[337877039,1726179051340,-2074.66,0.00014794,2]
[337877040,1726179051349,-460.53589522,0.00014794,2]
[337877041,1726179051363,-1341.82410478,0.00014794,2]
[337877042,1726179051372,-500.0,0.00014794,2]
[337877043,1726179051382,-500.0,0.00014794,2]
[337877044,1726179051391,-1203.73,0.00014794,2]
[337877045,1726179051400,-284.98784801,0.00014794,2]
[337877046,1726179051415,-1456.89159265,0.00014794,2]
[337877047,1726179051427,-60.48055934,0.00014794,2]
[337877048,1726179051437,-1804.75441734,0.00014794,2]
[337877049,1726179051449,-269.90558266,0.00014794,2]
[337877050,1726179051458,-319.11679196,0.00014794,2]
[337877051,1726179051468,-500.0,0.00014794,2]
[337877052,1726179051477,-998.05762538,0.00014794,2]
[337877053,1726179051491,-205.67237462,0.00014794,2]
[337877054,1726179051500,-2074.66,0.00014794,2]
[337877055,1726179051511,-1802.36,0.00014794,2]
[337877056,1726179051524,-500.0,0.00014794,2]
[337877057,1726179051534,-653.44316141,0.00014794,2]
[337877058,1726179051552,-550.28683859,0.00014794,2]
[337877059,1726179051562,-1907.09590036,0.00014794,2]
[337877060,1726179051575,-167.56409964,0.00014794,2]
[337877061,1726179051584,-1802.36,0.00014794,2]
[337877062,1726179051593,-500.0,0.00014794,2]
[337877063,1726179051602,-2074.66,0.00014794,2]
[337877064,1726179051611,-173.1686021,0.00014794,2]
[337877065,1726179051634,-444.3350225,0.00014794,2]
[337877066,1726179051645,-1185.00883549,0.00014794,2]
[337877067,1726179051654,-500.0,0.00014794,2]
[337877068,1726179051663,-1203.73,0.00014794,2]
[337877069,1726179051673,-1966.84547264,0.00014794,2]
[337877070,1726179051686,-107.81452736,0.00014794,2]
[337877071,1726179051695,-500.0,0.00014794,2]
[337877072,1726179051704,-695.36240457,0.00014794,2]
[337877073,1726179051724,-508.36759543,0.00014794,2]
[337877074,1726179051733,-775.29582623,0.00014794,2]
[337877075,1726179051746,-1299.36417377,0.00014794,2]
[337877076,1726179051755,-368.53996432,0.00014794,2]
[337877077,1726179051765,-962.92245599,0.00014794,2]
[337877078,1726179051778,-240.80754401,0.00014794,2]
[337877079,1726179051788,-151.0,0.00014794,2]
[337877080,1726179051797,-593.4517845,0.00014794,2]
[337877081,1726179051810,-324.95834368,0.00014794,2]
[337877082,1726179051821,-285.31987182,0.00014794,2]
[337877083,1726179051830,-2074.66,0.00014794,2]
[337877084,1726179051839,-151.0,0.00014794,2]
[337877085,1726179051848,-1203.73,0.00014794,2]
[337877086,1726179051858,-2074.84850225,0.00014794,2]
[337877087,1726179051868,-1203.73,0.00014794,2]
[337877088,1726179051877,-1203.73,0.00014794,2]
[337877089,1726179051887,-704.16249467,0.00014794,2]
[337877090,1726179051972,-371.08009368,0.00014794,2]
[337877091,1726179051985,-128.48741165,0.00014794,2]
[337877092,1726179051994,-1566.94,0.00014794,2]
[337877093,1726179052004,-1203.73,0.00014794,2]
[337877094,1726179052014,-464.07946501,0.00014794,2]
[337877095,1726179052023,-979.84,0.00014794,2]
[337877096,1726179052033,-1566.94,0.00014794,2]
[337877097,1726179052042,-1203.93503207,0.00014794,2]
[337877098,1726179052051,-1669.54,0.00014794,2]
[337877099,1726179052061,-979.84,0.00014794,2]
[337877100,1726179052071,-1566.94,0.00014794,2]
[337877101,1726179052080,-1669.54,0.00014794,2]
[337877102,1726179052090,-979.84,0.00014794,2]
[337877103,1726179052099,-1566.94,0.00014794,2]
[337877104,1726179052111,-1669.54,0.00014794,2]
[337877105,1726179052120,-979.84,0.00014794,2]
[337877106,1726179052130,-3018.88,0.00014794,2]
[337877107,1726179052139,-500.0,0.00014794,2]
[337877108,1726179052148,-1566.94,0.00014794,2]
[337877109,1726179052158,-656.53311545,0.00014794,2]
[337877110,1726179052182,-1013.00688455,0.00014794,2]
[337877111,1726179052191,-631.14956217,0.00014794,2]
[337877112,1726179052202,-348.69043783,0.00014794,2]
[337877113,1726179052211,-2838.50004848,0.00014794,2]
[337877114,1726179052249,-180.37995152,0.00014794,2]
[337877115,1726179052258,-500.0,0.00014794,2]
[337877116,1726179052266,-1368.89713083,0.00014794,2]
[337877117,1726179052279,-198.04286917,0.00014794,2]
[337877118,1726179052288,-1118.42117763,0.00014794,2]
[337877119,1726179052300,-551.11882237,0.00014794,2]
[337877120,1726179052309,-979.84,0.00014794,2]
[337877121,1726179052318,-3018.88,0.00014794,2]
[337877122,1726179052327,-500.0,0.00014794,2]
[337877123,1726179052337,-1566.94,0.00014794,2]
[337877124,1726179052346,-1669.54,0.00014794,2]
[337877125,1726179052355,-979.84,0.00014794,2]
[337877126,1726179052363,-3018.88,0.00014794,2]
[337877127,1726179052373,-500.0,0.00014794,2]
[337877128,1726179052382,-1566.94,0.00014794,2]
[337877129,1726179052392,-1669.54,0.00014794,2]
[337877130,1726179052401,-979.84,0.00014794,2]
[337877131,1726179052410,-3018.88,0.00014794,2]
[337877132,1726179052419,-1669.54,0.00014794,2]
[337877133,1726179052428,-500.0,0.00014794,2]
[337877134,1726179052437,-1566.94,0.00014794,2]
[337877135,1726179052447,-500.0,0.00014794,2]
[337877136,1726179052456,-979.84,0.00014794,2]
[337877137,1726179052465,-3018.88,0.00014794,2]
[337877138,1726179052474,-500.0,0.00014794,2]
[337877139,1726179052482,-500.0,0.00014794,2]
[337877140,1726179052491,-500.0,0.00014794,2]
[337877141,1726179052500,-1669.54,0.00014794,2]
[337877142,1726179052509,-1566.94,0.00014794,2]
[337877143,1726179052519,-979.84,0.00014794,2]
[337877144,1726179052528,-3018.88,0.00014794,2]
[337877145,1726179052536,-500.0,0.00014794,2]
[337877146,1726179052545,-500.0,0.00014794,2]
[337877147,1726179052554,-1669.54,0.00014794,2]
[337877148,1726179052563,-1566.94,0.00014794,2]
[337877149,1726179052572,-979.84,0.00014794,2]
[337877150,1726179052581,-3018.88,0.00014794,2]
[337877151,1726179052590,-1669.54,0.00014794,2]
[337877152,1726179052599,-500.0,0.00014794,2]
[337877153,1726179052608,-979.84,0.00014794,2]
[337877154,1726179052617,-376.74800159,0.00014794,2]
[337877155,1726179052652,-1190.19199841,0.00014794,2]
[337877156,1726179052661,-3018.88,0.00014794,2]
[337877157,1726179052671,-500.0,0.00014794,2]
[337877158,1726179052680,-979.84,0.00014794,2]
[337877159,1726179052689,-465.10607787,0.00014794,2]
[337877160,1726179052702,-1101.83392213,0.00014794,2]
[337877161,1726179052711,-3018.88,0.00014794,2]
[337877162,1726179052720,-500.0,0.00014794,2]
[337877163,1726179052729,-500.0,0.00014794,2]
[337877164,1726179052738,-1669.54,0.00014794,2]
[337877165,1726179052747,-979.84,0.00014794,2]
[337877166,1726179052756,-1566.94,0.00014794,2]
[337877167,1726179052766,-3018.88,0.00014794,2]
[337877168,1726179052775,-500.0,0.00014794,2]
[337877169,1726179052784,-1669.54,0.00014794,2]
[337877170,1726179052794,-4656.96,0.00014794,2]
[337877171,1726179052803,-500.0,0.00014794,2]
[337877172,1726179052812,-979.84,0.00014794,2]
[337877173,1726179052821,-1566.94,0.00014794,2]
[337877174,1726179052830,-3018.88,0.00014794,2]
[337877175,1726179052839,-1669.54,0.00014794,2]
[337877176,1726179052848,-979.84,0.00014794,2]
[337877177,1726179052857,-500.0,0.00014794,2]
[337877178,1726179052866,-4656.96,0.00014794,2]
[337877179,1726179052876,-1566.94,0.00014794,2]
[337877180,1726179052886,-500.0,0.00014794,2]
[337877181,1726179052895,-1478.64607277,0.00014794,2]
[337877182,1726179052922,-1540.23392723,0.00014794,2]
[337877183,1726179052931,-1669.54,0.00014794,2]
[337877184,1726179052941,-979.84,0.00014794,2]
[337877185,1726179052950,-2486.81726581,0.00014794,2]
[337877186,1726179052964,-433.79800002,0.00014794,2]
[337877187,1726179052975,-335.281,0.00014794,2]
[337877188,1726179052987,-1401.06373417,0.00014794,2]
[337877189,1726179052996,-837.21102661,0.00014794,2]
[337877190,1726179053008,-729.72897339,0.00014794,2]
[337877191,1726179053017,-500.0,0.00014794,2]
[337877192,1726179053026,-205.06267826,0.00014794,2]
[337877193,1726179053038,-294.93732174,0.00014794,2]
[337877194,1726179053047,-274.69161821,0.00014794,2]
[337877195,1726179053058,-2744.18838179,0.00014794,2]
[337877196,1726179053066,-449.84161825,0.00014794,2]
[337877197,1726179053085,-50.15838175,0.00014794,2]
[337877198,1726179053095,-449.84161825,0.00014794,2]
[337877199,1726179053109,-520.42458624,0.00014794,2]
[337877200,1726179053120,-699.27379551,0.00014794,2]
[337877201,1726179053129,-800.62628449,0.00014794,2]
[337877202,1726179053141,-179.21371551,0.00014794,2]
[337877203,1726179053153,-313.87640293,0.00014794,2]
[337877204,1726179053169,-746.22474826,0.00014794,2]
[337877205,1726179053181,-984.31139991,0.00014794,2]
[337877206,1726179053194,-502.0391172,0.00014794,2]
[337877215,1726179411415,1050.0,0.00011,2]
[337877216,1726179427294,161.41,0.00010959,2]
[337877218,1726179568870,166.64,0.0001107,2]
[337877224,1726180009937,155.36,0.00010959,2]
[337877237,1726180096086,-500.0,0.000123,2]
[337877239,1726180096114,-3153.15230194,0.00012364,2]
[337877242,1726180096146,-2474.05144805,0.00012364,2]
[337877248,1726180110728,171.49,0.00010453,2]
[337877253,1726180162340,200.0,0.00012147,2]
[337877257,1726180232179,-36.73625001,0.00012364,2]
[337877258,1726180232189,-416.0,0.0001237,2]
[337877259,1726180232199,-257.51,0.00012525,2]
[337877260,1726180232210,-250.0,0.00012608,2]
[337877261,1726180232221,-171.49,0.00012716,2]
[337877262,1726180232230,-250.0,0.00012737,2]
[337877263,1726180232240,-250.0,0.00012747,2]
[337877264,1726180232249,-150.0,0.00012748,2]
[337877265,1726180232259,-300.0,0.00012806,2]
[337877266,1726180232269,-199.25,0.00012807,2]
[337877267,1726180232278,-499.99,0.00012807,2]
[337877268,1726180232287,-1749.55765819,0.00012807,2]
[337877269,1726180232299,-514.15234181,0.00012807,2]
[337877270,1726180232309,-480.27,0.00012827,2]
[337877271,1726180232318,-844.67,0.00012861,2]
[337877272,1726180232328,-171.92175573,0.000129,2]
[337877273,1726180232338,-825.47645975,0.000129,2]
[337877274,1726180232348,-317.35860029,0.000129,2]
[337877275,1726180232358,-236.45909106,0.000129,2]
[337877276,1726180232367,-317.35860025,0.0001291,2]
[337877277,1726180232377,-317.35860025,0.00012919,2]
[337877278,1726180232386,-317.35860025,0.00012929,2]
[337877279,1726180232395,-825.47645974,0.00012934,2]
[337877280,1726180232405,-317.35860025,0.00012939,2]
[337877281,1726180232414,-317.35860025,0.00012949,2]
[337877282,1726180232424,-317.35860025,0.00012958,2]
[337877283,1726180232433,-825.47645974,0.00012968,2]
[337877284,1726180232442,-317.35860025,0.00012968,2]
[337877285,1726180232451,-500.0,0.00012973,2]
[337877286,1726180232461,-151.97,0.0001299,2]
[337877287,1726180232470,-151.97,0.0001299,2]
[337877288,1726180232479,-151.97,0.0001299,2]
[337877289,1726180232488,-151.97,0.0001299,2]
[337877290,1726180232497,-151.97,0.0001299,2]
[337877291,1726180232506,-151.97,0.0001299,2]
[337877292,1726180232515,-151.97,0.0001299,2]
[337877293,1726180232525,-151.97,0.0001299,2]
[337877294,1726180232534,-151.97,0.0001299,2]
[337877295,1726180232543,-151.97,0.0001299,2]
[337877296,1726180232552,-151.97,0.0001299,2]
[337877297,1726180232561,-151.97,0.0001299,2]
[337877298,1726180232570,-151.97,0.0001299,2]
[337877299,1726180232579,-500.0,0.00012999,2]
[337877300,1726180232588,-224.20820674,0.00012999,2]
[337877301,1726180232597,-205.58153379,0.00012999,2]
[337877302,1726180232606,-500.0,0.00012999,2]
[337877303,1726180232616,-150.0,0.00012999,2]
[337877304,1726180232625,-1100.0,0.00013,2]
[337877305,1726180232634,-221209.47478158,0.00013,2]
[337877306,1726180232645,-1096.48125041,0.00013,2]
[337877307,1726180232664,-341.42630098,0.00013,2]
[337877310,1726180240202,-151.09907107,0.00012425,2]
[337877311,1726180240212,-310.75229451,0.000129,2]
[337877312,1726180240222,-154.27,0.00012966,2]
[337877313,1726180240231,-1539.76726832,0.00013,2]
[337877314,1726180240242,-1015.1113661,0.00013,2]
[337877315,1726180240253,-418.07972467,0.00013,2]
[337877316,1726180240263,-581.435,0.00013,2]
[337877317,1726180240274,-471.62,0.00013,2]
[337877337,1726180246152,-4778.87436627,0.00013,2]
[337877338,1726180246164,-71254.04626974,0.00013,2]
[337877339,1726180246173,-325877.50514494,0.00013,2]
[337877340,1726180246368,-320.98,0.00013,2]
[337877344,1726180320134,881.61,0.00010959,2]
[337877345,1726180357348,226.23,0.00012,2]
[337877347,1726180566912,1352.17,0.00012,2]
[337877348,1726180605720,3807.74,0.00012,2]
[337877349,1726180617957,167.99,0.0001049,2]
[337877350,1726180859582,250.0,0.00012148,2]
[337877352,1726180970379,250.0,0.00012148,2]
[337877353,1726181015030,250.0,0.00011649,2]
[337877354,1726181035741,360.6,0.00010959,2]
[337877356,1726181097162,785.8,0.00011647,2]
[337877357,1726181107488,150.0,0.00012164,2]
[337877358,1726181108425,150.0,0.00011688,2]
[337877359,1726181108689,150.0,0.00012121,2]
[337877360,1726181111300,150.00000001,0.00011688,2]
[337877361,1726181119000,163.86763665,0.00011688,2]
[337877362,1726181120485,150.0,0.00011688,2]
[337877366,1726181146556,174.82,9.764e-05,2]
[337877367,1726181146977,174.82,0.00012028,2]
[337877368,1726181217222,1050.0,0.00011,2]
[337877370,1726181229062,419.73,0.00011672,2]
[337877380,1726181292188,-405.79,0.00012178,2]
[337877381,1726181292218,-151.47,0.00012178,2]
[337877382,1726181292246,-151.47,0.00012183,2]
[337877383,1726181292276,-151.47,0.00012188,2]
[337877384,1726181292305,-151.47,0.00012193,2]
[337877385,1726181292335,-2674.44002797,0.00012193,2]
[337877386,1726181292379,-1019.07590062,0.00012193,2]
[337877387,1726181292409,-151.47,0.00012198,2]
[337877388,1726181292447,-151.47,0.00012203,2]
[337877389,1726181292478,-151.47,0.00012209,2]
[337877390,1726181292510,-151.47,0.00012214,2]
[337877391,1726181292540,-151.47,0.00012219,2]
[337877392,1726181292572,-151.47,0.00012224,2]
[337877393,1726181292606,-151.47,0.00012229,2]
[337877394,1726181292637,-151.47,0.00012234,2]
[337877395,1726181292667,-151.47,0.00012239,2]
[337877396,1726181292695,-380.94,0.00012258,2]
[337877397,1726181292724,-171.37,0.00012296,2]
[337877398,1726181292754,-174.26,0.00012335,2]
[337877399,1726181292785,-471.65013505,0.00012359,2]
[337877408,1726181432332,-528.34986495,0.00012359,2]
[337877409,1726181432341,-250.0,0.0001242,2]
[337877410,1726181432350,-150.0,0.00012553,2]
[337877411,1726181432360,-1265.9,0.00012653,2]
[337877412,1726181432369,-410.4035168,0.00012784,2]
[337877413,1726181432378,-1114.9301,0.000128,2]
[337877414,1726181432387,-2660.18924102,0.0001287,2]
[337877415,1726181432411,-238.05725823,0.0001287,2]
[337877416,1726181432421,-1001.92167631,0.00012899,2]
[337877417,1726181432431,-153.70332581,0.00012899,2]
[337877418,1726181432442,-150.0,0.00012899,2]
[337877419,1726181432452,-300.0,0.00012899,2]
[337877420,1726181432464,-3182.93248107,0.000129,2]
[337877421,1726181432473,-28.29106628,0.000129,2]
[337877422,1726181432489,-126.02022278,0.000129,2]
[337877423,1726181432499,-5470.11696835,0.000129,2]
[337877425,1726181432510,-4629.37123165,0.000129,2]
[337877427,1726181432520,-53150.04668442,0.000129,2]
[337877431,1726181432548,-1026.39824093,0.000129,2]
[337877433,1726181432560,-402.31913625,0.000129,2]
[337877437,1726181438197,-4890.25426384,0.00012784,2]
[337877438,1726181438207,-850.7693384,0.000129,2]
[337877439,1726181438216,-160.36941333,0.000129,2]
[337877440,1726181438226,-1000.0,0.000129,2]
[337877441,1726181438237,-1000.0,0.000129,2]
[337877442,1726181438246,-12311.46861417,0.000129,2]
[337877443,1726181438257,-2500.0,0.000129,2]
[337877444,1726181438267,-174.16952652,0.000129,2]
[337877445,1726181438277,-311.87133637,0.000129,2]
[337877446,1726181438286,-154.31128906,0.00012968,2]
[337877447,1726181438296,-150.0,0.00012986,2]
[337877448,1726181438306,-151.62886511,0.00012986,2]
[337877449,1726181438316,-151.69,0.0001299,2]
[337877450,1726181438325,-766.49486,0.0001299,2]
[337877451,1726181438335,-500.0,0.00012999,2]
[337877452,1726181438345,-500.0,0.00012999,2]
[337877453,1726181438355,-500.0,0.00012999,2]
[337877454,1726181438365,-199.30226172,0.00012999,2]
[337877455,1726181438375,-500.0,0.00012999,2]
[337877456,1726181438385,-395.32216779,0.00012999,2]
[337877457,1726181438396,-9978.33102349,0.00013,2]
[337877459,1726181438540,-8399.2174918,0.00013,2]
[337877460,1726181438552,-987.45743925,0.00013,2]
[337877461,1726181438572,-478.31959918,0.00013,2]
[337877462,1726181438584,-820.5999,0.00013,2]
[337877463,1726181438597,-644.68559983,0.00013,2]
[337877464,1726181438610,-1016.61,0.00013,2]
[337877465,1726181438622,-1715.6453042,0.00013,2]
[337877466,1726181438643,-818.775,0.00013,2]
[337877467,1726181440262,-1823.73216087,0.00013,2]